[Event "Menorca Open-A 2022"]
[Site "Menorca"]
[Date "2022.04.23"]
[Round "5.11"]
[White "Guerra Reig, Juan (Group B)"]
[Black "Kamm, Guenter (Group B)"]
[Result "1-0"]
[ECO "A36"]
[WhiteElo "1974"]
[BlackElo "1821"]
[Annotator "TA"]
[PlyCount "51"]
[EventDate "2022.04.20"]
[EventType "swiss"]
[EventCountry "ESP"]
[SourceTitle "playchess.com"]
[Source "ChessBase"]
[SourceQuality "1"]
[TimeControl "5400+30"]

{[%evp 19,51,-12,4,0,14,21,20,0,-10,-22,88,81,94,93,91,77,87,56,57,46,115,104,359,213,339,324,316,297,531,520,515,365,29996,29997]} 1. c4 {[%emt 1:31:00]} Nf6 {[%emt 1:31:00]} 2. Nc3 {[%emt 0:00:30]} c5 {[%emt 0:00:30]} 3. g3 {[%emt 0:00:30]} Nc6 {[%emt 0:00:30]} 4. Bg2 {[%emt 0:00:30]} g6 {[%emt 0:00:30]} 5. d3 {[%emt 0:00:30]} Bg7 {[%emt 0:00:30]} 6. e4 {[%emt 0:00:30]} O-O {[%emt 0:00:30]} 7. Nge2 {[%emt 0:00:30]} d6 {[%emt 0:00:30]} 8. O-O {[%emt 0:00:30]} Rb8 {[%emt 0:00:30]} 9. h3 {[%emt 0:00:30]} a6 {[%emt 0:00:30]} 10. f4 {[%emt 0:00:30]} Nd4 {[%emt 0:00:30]} 11. a4 {[%emt 0:00:30][%cal Ba2a4,Ba4a5][%mdl 32] [#] A36: Symmetrical English vs ...g6: 4 Bg2 Bg7.} b6 $146 {[%emt 0:00:30]} ({Predecessor:} 11... Ne8 12. Kh2 b6 13. Rb1 Nc7 14. b4 cxb4 15. Rxb4 f5 16. Be3 e5 17. Qb1 Nce6 18. Bxd4 exd4 {1-0 (59) Goganov,A (2597)-Popov,M (2280) Minsk 2015}) 12. Nxd4 {[%emt 0:00:30]} cxd4 {[%emt 0:00:30]} 13. Ne2 {[%emt 0:00:30] The position is equal.} (13. Nb1) 13... Nd7 {[%emt 0:00:30]} 14. b4 {[%emt 0:00:30]} b5 {[%emt 0:00:30]} (14... a5) (14... a5 $11) 15. cxb5 $16 {[%emt 0:00:30]} axb5 {[%emt 0:00:30]} 16. a5 {[%emt 0:00:30]} Bb7 {[%emt 0:00:30]} 17. Qb3 {[%emt 0:00:30]} e5 {[%emt 0:00:30]} 18. f5 {[%emt 0:00:30][%cal Bf4f5,Bf5g6][%mdl 32]} Rc8 {[%emt 0:00:30]} 19. Bd2 {[%emt 0:00:30]} (19. h4) 19... Kh8 {[%emt 0:00:30]} (19... d5) (19... d5 $14) 20. fxg6 {[%emt 0:00:30] White is more active.} (20. g4) 20... f5 {[%emt 0:00:30][%mdl 8192] [#] This move loses the game for Black.} (20... fxg6 $16 {keeps fighting.} 21. Rxf8+ Nxf8) 21. Rxf5 {[%emt 0:00:30]} (21. exf5 Bxg2 22. Kxg2 Qc7 23. gxh7 Qc2 24. Qxc2 Rxc2 $18) (21. a6 $142 Bc6 22. exf5) 21... Rxf5 {[%emt 0:00:30]} (21... hxg6 $142 22. Rxf8+ Nxf8) 22. exf5 $18 {[%emt 0:00:30]} Bxg2 {[%emt 0:00:30]} 23. Kxg2 {[%emt 0:00:30] aiming for gxh7.} e4 $2 {[%emt 0:00:30]} (23... hxg6 {might work better.} 24. fxg6 Qf6) 24. dxe4 {[%emt 0:00:30]} d3 {[%emt 0:00:30]} 25. Bc3 {[%emt 0:00:30]} dxe2 $2 {[%emt 0:00:30] [#]} (25... Bxc3 $18 26. Nxc3 hxg6) 26. Bxg7+ {[%emt 0:00:30] Weighted Error Value: White=0.25 (precise) /Black=1.09} 1-0

[Event "Menorca Open-A 2022"]
[Site "Menorca"]
[Date "2022.04.23"]
[Round "6.1"]
[White "Sargsyan, Shant"]
[Black "Gukesh D"]
[Result "1/2-1/2"]
[ECO "D38"]
[WhiteElo "2639"]
[BlackElo "2637"]
[Annotator "TA"]
[PlyCount "35"]
[EventDate "2022.04.20"]
[EventType "swiss"]
[EventCountry "ESP"]
[SourceTitle "playchess.com"]
[Source "ChessBase"]
[SourceQuality "1"]
[TimeControl "5400+30"]

{[%evp 12,22,21,18,18,19,31,6,6,4,8,7,39]} 1. d4 {[%emt 1:31:00]} Nf6 {[%emt 1:31:00]} 2. c4 {[%emt 0:00:30]} e6 {[%emt 0:00:30]} 3. Nf3 {[%emt 0:00:30]} d5 {[%emt 0:00:30]} 4. Nc3 {[%emt 0:00:30]} Bb4 {[%emt 0:00:30]} 5. cxd5 {[%emt 0:00:30]} exd5 {[%emt 0:00:30]} 6. Bg5 {[%emt 0:00:30]} h6 {[%emt 0:00:30]} 7. Bh4 {[%emt 0:00:30]} O-O {[%emt 0:00:30] 7...Bf5 is a critical line. D38: Queen's Gambit Declined: Ragozin Defence (4 Nf3 Bb4).} 8. e3 {[%emt 0:00:30]} Bf5 {[%emt 0:00:30]} 9. Be2 {[%emt 0:00:30]} (9. Qb3 $5 {[%cal Rb3b4]} Nc6 10. Bxf6 Qxf6 11. Qxd5 $14) 9... Nbd7 {[%emt 0:00:30] The position is equal.} 10. Qb3 {[%emt 0:00:30]} Bxc3+ {[%emt 0:00:30]} 11. Qxc3 {[%emt 0:00:30]} Ne4 {[%emt 0:00:30] [#] An uneventful encounter.  Weighted Error Value: White=0.05 (flawless) /Black=0.00 (flawless)} {Predecessor:} 12. Bxd8 $146 Nxc3 13. bxc3 Rfxd8 14. a4 c5 15. a5 Rac8 16. Nd2 cxd4 17. cxd4 Rc2 18. g4 {1-0 (63) Leko,P (2674)-Vidit,S (2703) Biel 2019} 1/2-1/2

[Event "Menorca Open-A 2022"]
[Site "Menorca"]
[Date "2022.04.23"]
[Round "6.2"]
[White "Aryan Chopra"]
[Black "Nihal Sarin"]
[Result "1/2-1/2"]
[ECO "C18"]
[WhiteElo "2592"]
[BlackElo "2648"]
[Annotator "TA"]
[PlyCount "65"]
[EventDate "2022.04.20"]
[EventType "swiss"]
[EventCountry "ESP"]
[SourceTitle "playchess.com"]
[Source "ChessBase"]
[SourceQuality "1"]
[TimeControl "5400+30"]

{[%evp 15,65,30,30,27,25,25,25,20,12,13,17,5,38,22,26,11,33,9,34,0,0,0,0,0,9,0,10,6,20,21,54,48,82,48,51,41,80,64,80,43,43,14,14,14,14,6,6,0,0,0,-14,-14]} 1. e4 {[%emt 0:00:04]} e6 {[%emt 0:03:08]} 2. d4 {[%emt 0:00:10]} d5 {[%emt 0:00:03]} 3. Nc3 {[%emt 0:00:05]} Bb4 {[%emt 0:00:03]} 4. e5 {[%emt 0:00:09]} c5 {[%emt 0:00:05]} 5. a3 {[%emt 0:00:14]} Bxc3+ {[%emt 0:00:04]} 6. bxc3 {[%emt 0:00:04]} Qc7 {[%emt 0:00:04]} 7. Qg4 {[%emt 0:02:23]} f6 $1 {[%emt 0:00:12][%mdl 4] now scores much better than the old 7...f5.} 8. Nf3 {[%emt 0:14:46]} c4 {[%emt 0:00:17]} 9. Qg3 {[%emt 0:06:27] C18: French: 3 Nc3 Bb4: Main line: 7 h4 and 7 Qg4.} Qf7 {[%emt 0:01:01]} 10. h4 {[%emt 0:01:24]} h5 {[%emt 0:00:42]} 11. a4 {[%emt 0:03:09] White has an edge.} Nc6 {[%emt 0:00:32][%cal Bb8c6,Bc6e7,Be7f5][%mdl 32] [#]} 12. a5 $146 {[%emt 0:02:07]} ({Predecessor:} 12. Ba3 Nge7 13. Bxe7 Nxe7 14. Qf4 Qg6 15. Qd2 O-O 16. exf6 gxf6 17. Be2 Bd7 18. O-O {0-1 (47) Yogit,S (2270)-Nihal,S (2358) Bhubaneswar 2016}) 12... Nge7 {[%emt 0:00:52]} 13. Be2 {[%emt 0:00:06]} Qg6 {[%emt 0:13:24]} 14. Qxg6+ {[%emt 0:09:44]} Nxg6 {[%emt 0:00:01]} 15. exf6 {[%emt 0:00:18]} gxf6 {[%emt 0:00:02]} 16. Be3 {[%emt 0:03:04]} Nce7 {[%emt 0:25:43]} 17. g3 {[%emt 0:10:53]} Nf5 {[%emt 0:00:33]} 18. Bc1 {[%emt 0:00:04][%cal Be3c1,Bc1a3,Ba3b4][%mdl 32]} Nd6 {[%emt 0:02:28]} 19. Ba3 {[%emt 0:00:06]} Nb5 {[%emt 0:01:50]} 20. Bb4 {[%emt 0:02:04]} Bd7 {[%emt 0:00:02]} 21. Kd2 {[%emt 0:02:24]} Kf7 {[%emt 0:02:22]} 22. Ne1 {[%emt 0:05:37]} Bc6 {[%emt 0:07:55]} 23. Ng2 {[%emt 0:03:57]} Rad8 {[%emt 0:12:11]} 24. Nf4 {[%emt 0:11:05]} Nxf4 {[%emt 0:00:24]} 25. gxf4 {[%emt 0:00:05]} a6 {[%emt 0:08:00]} 26. Rhg1 {[%emt 0:01:31]} Nc7 {[%emt 0:06:52]} 27. Rg3 {[%emt 0:02:36] [#] And now Rag1 would win. &Bianco is more active.} Rdg8 {[%emt 0:00:55]} 28. Rxg8 {[%emt 0:02:56]} (28. Re3 {looks sharper.} f5 29. Bd6 Ne8 30. Be5) 28... Kxg8 {[%emt 0:00:07] The position is equal.} 29. Rg1+ {[%emt 0:00:08]} Kf7 {[%emt 0:00:09]} 30. Bc5 {[%emt 0:00:22]} Ne8 {[%emt 0:00:56]} 31. Bf1 {[%emt 0:00:12]} Ng7 {[%emt 0:02:03]} 32. Bh3 {[%emt 0:00:07]} Nf5 {[%emt 0:00:12]} 33. Bxf5 {[%emt 0:00:18] Weighted Error Value: White=0.09 (flawless) /Black=0.09 (flawless)} 1/2-1/2

[Event "Menorca Open-A 2022"]
[Site "Menorca"]
[Date "2022.04.23"]
[Round "6.3"]
[White "Santos Latasa, Jaime"]
[Black "Santos Ruiz, Miguel"]
[Result "1/2-1/2"]
[ECO "D36"]
[WhiteElo "2656"]
[BlackElo "2597"]
[Annotator "TA"]
[PlyCount "50"]
[EventDate "2022.04.20"]
[EventType "swiss"]
[EventCountry "ESP"]
[SourceTitle "playchess.com"]
[Source "ChessBase"]
[SourceQuality "1"]
[TimeControl "5400+30"]

{[%evp 20,50,14,17,24,10,18,2,29,0,0,0,0,0,0,0,14,0,10,6,10,0,10,10,6,8,8,0,0,0,12,0,0]} 1. d4 {[%emt 0:00:04]} d5 {[%emt 0:00:03]} 2. c4 {[%emt 0:00:29]} e6 {[%emt 0:00:04]} 3. Nc3 {[%emt 0:00:24]} Nf6 {[%emt 0:00:03]} 4. cxd5 {[%emt 0:01:13]} exd5 {[%emt 0:00:14]} 5. Bg5 {[%emt 0:00:11]} c6 {[%emt 0:00:02]} 6. e3 {[%emt 0:00:17]} h6 {[%emt 0:00:04]} 7. Bh4 {[%emt 0:00:13]} Be7 {[%emt 0:00:03]} 8. Bd3 {[%emt 0:00:26]} O-O {[%emt 0:00:04]} 9. Nge2 {[%emt 0:00:29]} Re8 {[%emt 0:00:15]} 10. O-O {[%emt 0:00:26]} Nbd7 {[%emt 0:00:02]} 11. Qc2 {[%emt 0:00:59]} a6 {[%emt 0:01:16] D36: Queen's Gambit Declined: Exchange Variation: Main line (5 Bg5 c6 6 Qc2).} 12. Kh1 {[%emt 0:04:14] [#]} b5 $146 {[%emt 0:05:21]} ({Predecessor:} 12... Ne4 13. Bxe7 Qxe7 14. Rae1 Ndf6 15. f3 Nxc3 16. Nxc3 Qd6 17. Qf2 Be6 18. Rg1 Kf8 19. h3 {1-0 (39) Krmelj,N (2035)-Ferkingstad,G (2010) Moscow 1994}) 13. Nb1 {[%emt 0:06:00][%cal Bc3b1,Bb1d2,Bd2b3,Bb3d4][%mdl 32]} Qb6 {[%emt 0:06:31]} 14. Nd2 {[%emt 0:09:39]} c5 {[%emt 0:00:09] The position is equal.} 15. dxc5 {[%emt 0:00:57]} Nxc5 {[%emt 0:00:03]} 16. Nb3 {[%emt 0:09:27]} Nxd3 {[%emt 0:04:44]} 17. Qxd3 {[%emt 0:00:18]} Bb7 {[%emt 0:00:39]} 18. Nbd4 {[%emt 0:02:47]} Bf8 {[%emt 0:02:52]} 19. Bxf6 {[%emt 0:06:18]} Qxf6 {[%emt 0:00:06]} 20. Rac1 {[%emt 0:00:20]} Rac8 {[%emt 0:02:13]} 21. Kg1 {[%emt 0:00:34]} g6 {[%emt 0:06:29]} 22. Rxc8 {[%emt 0:01:58]} Rxc8 {[%emt 0:00:43]} 23. Rc1 {[%emt 0:01:16]} Rxc1+ {[%emt 0:00:05]} 24. Nxc1 {[%emt 0:00:05] Pair of Knights!} Qe5 {[%emt 0:00:02]} 25. Qd2 {[%emt 0:03:36]} Bd6 {[%emt 0:00:53] An interesting draw.  Weighted Error Value: White=0.07 (flawless) /Black=0.07 (flawless)} 1/2-1/2

[Event "Menorca Open-A 2022"]
[Site "Menorca"]
[Date "2022.04.23"]
[Round "6.4"]
[White "Adhiban, B.."]
[Black "Budisavljevic, Luka"]
[Result "1-0"]
[ECO "C02"]
[WhiteElo "2633"]
[BlackElo "2509"]
[Annotator "TA"]
[PlyCount "61"]
[EventDate "2022.04.20"]
[EventType "swiss"]
[EventCountry "ESP"]
[SourceTitle "playchess.com"]
[Source "ChessBase"]
[SourceQuality "1"]
[TimeControl "5400+30"]

{[%evp 11,61,0,-10,-31,-31,-20,-26,-31,-24,-54,-39,-52,-20,-45,-44,-45,-50,-64,-58,-63,12,20,17,-11,0,-23,-23,-22,-20,-184,193,191,438,395,438,440,642,661,1010,980,1371,1319,1318,1324,1326,1270,6212,3304,3050,2832,1768,775]} 1. e4 {[%emt 0:01:08]} e6 {[%emt 0:04:30]} 2. d4 {[%emt 0:01:30]} d5 {[%emt 0:01:27]} 3. e5 {[%emt 0:00:07]} c5 {[%emt 0:00:11]} 4. c3 {[%emt 0:00:03]} Qb6 {[%emt 0:00:19]} 5. Nf3 {[%emt 0:00:15]} Nc6 {[%emt 0:00:07]} 6. Bd3 {[%emt 0:00:24]} cxd4 {[%emt 0:00:19]} 7. O-O $1 {[%emt 0:00:09][%mdl 4] is more profitable than 7.cxd4 at the moment. C02: French: Advance Variation.} Bd7 {[%emt 0:00:22]} 8. Re1 {[%emt 0:01:03]} Nge7 {[%emt 0:00:14]} 9. h4 {[%emt 0:00:40] Black has an edge.} h6 {[%emt 0:00:05]} 10. h5 {[%emt 0:01:25]} a6 {[%emt 0:00:30]} 11. Nbd2 {[%emt 0:02:09]} dxc3 {[%emt 0:19:52]} 12. bxc3 {[%emt 0:00:05] [#]} Nc8 $146 {[%emt 0:00:43]} ({Predecessor:} 12... Na5 13. Rb1 Qc7 14. Ba3 Nc8 15. Bxf8 Rxf8 16. Qc1 Nb6 17. Qa3 Na4 18. c4 Qc5 {1-0 (46) Shevchenko,K (2592)-Borsuk,K (2401) Kremenchuk 2020}) 13. Nb3 {[%emt 0:08:14]} Qc7 {[%emt 0:00:38]} 14. a4 {[%emt 0:26:52]} Nb6 {[%emt 0:01:08]} 15. Be3 {[%emt 0:02:26]} Nc4 {[%emt 0:23:08] Inhibits a5.} (15... Nd8 $15 16. Bxb6 Qxb6) 16. Bxc4 $11 {[%emt 0:00:32]} dxc4 {[%emt 0:00:01]} 17. Nc5 {[%emt 0:00:07]} Rd8 {[%emt 0:01:45]} 18. Rb1 {[%emt 0:18:35]} Bc8 {[%emt 0:08:32]} 19. Qe2 {[%emt 0:00:06]} Nxe5 {[%emt 0:02:37]} 20. Nxa6 $2 {[%emt 0:01:53]} Qd6 $4 {[%emt 0:17:05][%mdl 8192] [#]} ({Inferior is} 20... bxa6 21. Bb6 Nxf3+ 22. Qxf3 $17) (20... Nxf3+ $19 21. Qxf3 bxa6) 21. Bb6 $1 $18 {[%emt 0:04:23][%mdl 1024] White has strong compensation.} Nd3 {[%emt 0:01:54]} (21... Nxf3+ {keeps fighting.} 22. Qxf3 bxa6) 22. Nc7+ {[%emt 0:00:17]} Ke7 {[%emt 0:04:26]} 23. Nd4 {[%emt 0:04:27] Threatens to win with Nf5+. Pair of Knights! White is clearly winning.} e5 {[%emt 0:00:31]} (23... g6 $142 24. hxg6 e5) 24. f4 {[%emt 0:05:06]} f6 {[%emt 0:02:06]} 25. fxe5 {[%emt 0:00:19]} fxe5 {[%emt 0:00:25]} 26. Rf1 {[%emt 0:03:26]} g6 {[%emt 0:00:30]} 27. hxg6 {[%emt 0:01:51]} Qxg6 {[%emt 0:00:27] [#]} 28. Bc5+ $1 {[%emt 0:01:11][%mdl 512]} Kd7 {[%emt 0:05:39] [#]} (28... Nxc5 29. Qxe5+) 29. Qg4+ $3 {[%emt 0:00:07][%mdl 512]} Kxc7 {[%emt 0:00:04]} (29... Qf5 30. Rxf5) 30. Nb5+ {[%emt 0:00:14][%mdl 64] Discovered Attack} Kb8 {[%emt 0:00:03]} 31. Ba7+ {[%emt 0:00:05] Weighted Error Value: White=0.18 (very precise) /Black=0.79} ({Not} 31. Qxg6 Bxc5+ 32. Kh2 Rhg8 $18) 1-0

[Event "Menorca Open-A 2022"]
[Site "Menorca"]
[Date "2022.04.23"]
[Round "6.5"]
[White "Garriga Cazorla, Pere"]
[Black "Martirosyan, Haik M."]
[Result "0-1"]
[ECO "E12"]
[WhiteElo "2504"]
[BlackElo "2633"]
[Annotator "TA"]
[PlyCount "86"]
[EventDate "2022.04.20"]
[EventType "swiss"]
[EventCountry "ESP"]
[SourceTitle "playchess.com"]
[Source "ChessBase"]
[SourceQuality "1"]
[TimeControl "5400+30"]

{[%evp 25,86,0,14,-10,0,-8,0,-18,33,8,4,6,4,14,9,7,6,-45,-46,-47,-47,-47,-50,-47,-51,-51,-54,-60,-46,-47,-43,-49,-45,-102,-106,-107,-108,-110,-79,-84,-66,-71,-56,-128,-126,-345,-335,-320,-313,-417,-417,-417,-417,-417,-410,-410,-403,-402,-395,-391,-384,-390,-382]} 1. d4 {[%emt 0:01:16]} Nf6 {[%emt 0:00:08]} 2. c4 {[%emt 0:00:04]} e6 {[%emt 0:00:07]} 3. Nf3 {[%emt 0:00:05]} b6 {[%emt 0:00:57]} 4. a3 {[%emt 0:00:25]} Bb7 {[%emt 0:04:30]} 5. Nc3 {[%emt 0:00:17]} d5 {[%emt 0:00:13]} 6. cxd5 {[%emt 0:00:07]} Nxd5 {[%emt 0:00:26]} 7. Qc2 {[%emt 0:00:36]} Be7 {[%emt 0:01:05]} 8. e4 {[%emt 0:00:31]} Nxc3 {[%emt 0:00:08]} 9. bxc3 {[%emt 0:00:05]} O-O {[%emt 0:01:03]} 10. Bd3 {[%emt 0:00:24]} c5 {[%emt 0:00:47]} 11. O-O {[%emt 0:01:24]} Qc7 {[%emt 0:01:53]} 12. Qe2 {[%emt 0:01:26]} Nd7 {[%emt 0:01:50]} 13. Bb2 {[%emt 0:09:30] 13.Bb2 has lost popularity.} Rac8 {[%emt 0:04:20]} 14. a4 {[%emt 0:10:16] E12: Queen's Indian: Unusual White 4th moves, 4 a3, 4 Nc3 Bb7 5 a3 and 4 Nc3 Bb7 .} Rfd8 {[%emt 0:02:49]} 15. Rfd1 {[%emt 0:05:15]} h6 {[%emt 0:06:56]} 16. h3 {[%emt 0:07:52] [#] The position is equal.} e5 $5 $146 {[%emt 0:02:43][%mdl 8] An interesting novelty.} (16... Nb8 $11) ({Predecessor:} 16... Nf8 17. Bc1 Ng6 18. g3 cxd4 19. cxd4 Bb4 20. Bb2 Qb8 21. Rac1 Rxc1 22. Rxc1 Rc8 23. Rc2 Rxc2 {½-½ (23) Kratochvil,J (2207)-Kudr,R (2288) ICCF email 2016}) 17. Bb5 {[%emt 0:08:27]} cxd4 {[%emt 0:02:53]} 18. cxd4 {[%emt 0:01:40]} Qc2 {[%emt 0:00:12]} 19. d5 {[%emt 0:22:22]} Qxe2 {[%emt 0:05:21]} 20. Bxe2 {[%emt 0:00:31]} Nc5 {[%emt 0:05:11]} (20... Rc2 $5 21. Rd2 Rdc8 $11) 21. Nxe5 {[%emt 0:08:13]} (21. Ba3 $11) 21... Nxe4 $15 {[%emt 0:02:24]} 22. Nc6 {[%emt 0:12:56]} Bxc6 {[%emt 0:00:36]} 23. dxc6 {[%emt 0:00:06]} Rxc6 {[%emt 0:02:47]} 24. Rxd8+ {[%emt 0:02:19]} Bxd8 {[%emt 0:00:05]} 25. Bd3 {[%emt 0:00:41]} Nc5 {[%emt 0:02:01]} 26. Bb5 {[%emt 0:00:26]} Re6 {[%emt 0:01:35]} 27. Rd1 {[%emt 0:00:21]} Bf6 {[%emt 0:00:42]} 28. Ba3 {[%emt 0:00:05]} a6 {[%emt 0:00:45]} 29. Bf1 {[%emt 0:00:04]} ({White should play} 29. Bc4 $1 $15 Re4 30. Rc1) 29... Nxa4 $17 {[%emt 0:01:30]} 30. Bxa6 {[%emt 0:00:21]} Nc3 {[%emt 0:03:04]} 31. Rd2 {[%emt 0:02:41]} Re1+ {[%emt 0:04:17]} 32. Bf1 {[%emt 0:00:37]} Nb1 {[%emt 0:04:57] &Nero is more active.} 33. Rd3 {[%emt 0:00:42]} Bc3 {[%emt 0:00:06] [#] Against Bb4. aiming for ...Ba5.} 34. g3 {[%emt 0:00:45]} Nd2 {[%emt 0:02:02] ...Ba5 is the strong threat.} ({Much weaker is} 34... Nxa3 $6 35. Rxc3 Ra1 36. Kg2 $11) 35. Rxc3 {[%emt 0:00:48] Now White is beyond hope.} (35. Kg2 $17 Rxf1 36. Rxd2) 35... Rxf1+ $19 {[%emt 0:00:10]} 36. Kg2 {[%emt 0:00:04] [#] Strongly threatening Rc8+.} Rxf2+ $1 {[%emt 0:00:13][%mdl 512]} 37. Kxf2 {[%emt 0:01:32][%mdl 4096] Endgame} (37. Kg1 Re2) 37... Ne4+ {[%emt 0:00:06] Black is winning.} 38. Ke3 {[%emt 0:00:03]} Nxc3 {[%emt 0:00:05]} 39. Kd3 {[%emt 0:00:03]} Nd5 {[%emt 0:00:56]} 40. Kc4 {[%emt 0:00:43]} Nf6 {[%emt 0:00:58]} 41. Bd6 {[%emt 0:00:07]} Kh7 {[%emt 0:02:08]} 42. Bc7 {[%emt 0:00:40]} Ne4 {[%emt 0:00:26]} 43. Kd4 {[%emt 0:01:16]} Ng5 {[%emt 0:00:19] Weighted Error Value: White=0.21 (precise) /Black=0.08 (flawless)} 0-1

[Event "Menorca Open-A 2022"]
[Site "Menorca"]
[Date "2022.04.23"]
[Round "6.6"]
[White "Sadhwani, Raunak"]
[Black "Chumpitaz, Ann"]
[Result "1-0"]
[ECO "D36"]
[WhiteElo "2628"]
[BlackElo "2244"]
[Annotator "TA"]
[PlyCount "53"]
[EventDate "2022.04.20"]
[EventType "swiss"]
[EventCountry "ESP"]
[SourceTitle "playchess.com"]
[Source "ChessBase"]
[SourceQuality "1"]
[TimeControl "5400+30"]

{[%evp 18,53,22,12,36,29,26,21,28,0,46,39,74,71,62,35,30,19,87,83,100,77,82,88,137,114,351,351,384,364,323,359,788,771,2841,2738,29991,29992]} 1. d4 {[%emt 0:01:45]} Nf6 {[%emt 0:00:08]} 2. c4 {[%emt 0:00:04]} e6 {[%emt 0:01:24]} 3. Nc3 {[%emt 0:01:54]} d5 {[%emt 0:00:36]} 4. cxd5 {[%emt 0:00:35]} exd5 {[%emt 0:00:06]} 5. Bg5 {[%emt 0:00:30]} Be7 {[%emt 0:01:01]} 6. e3 {[%emt 0:00:07]} c6 {[%emt 0:01:30]} 7. Bd3 {[%emt 0:00:18]} Nbd7 {[%emt 0:00:05]} 8. Qc2 {[%emt 0:00:18]} O-O {[%emt 0:00:32] 8...Nh5 might become the main line.} 9. Nge2 {[%emt 0:00:29]} h6 {[%emt 0:02:04]} 10. Bh4 {[%emt 0:02:05]} Ng4 {[%emt 0:08:43] D36: Queen's Gambit Declined: Exchange Variation: Main line (5 Bg5 c6 6 Qc2).} 11. Bxe7 {[%emt 0:14:52]} Qxe7 {[%emt 0:00:06]} 12. h3 {[%emt 0:00:02]} Ngf6 {[%emt 0:00:40] The position is equal.} 13. O-O-O {[%emt 0:01:27]} Re8 {[%emt 0:06:16]} (13... b5 $11) 14. g4 $14 {[%emt 0:01:35]} Ne4 {[%emt 0:01:12]} 15. Bxe4 {[%emt 0:00:50]} dxe4 {[%emt 0:00:04]} 16. h4 {[%emt 0:01:07][%cal Og4g5] [#]} Nf8 $146 {[%emt 0:15:09]} ({Predecessor:} 16... Nf6 17. g5 Ng4 18. Ng3 f5 19. gxh6 Nxh6 20. Nce2 Be6 21. Kb1 Qf7 22. b3 a5 23. Nf4 a4 24. b4 Bc4 {0-1 (46) Chabot,C (1820)-Wenger,J (1910) IECC email 2000}) 17. Rdg1 {[%emt 0:00:27]} Nh7 {[%emt 0:03:49]} (17... Ng6 $11 {keeps the balance.}) 18. Nf4 {[%emt 0:04:03][%cal Og4g5]} g6 {[%emt 0:07:12]} 19. Kb1 {[%emt 0:01:38] &Bianco is more active.} Bd7 {[%emt 0:00:12]} 20. Qb3 {[%emt 0:01:58][%csl LRb7,LRg6] Hoping for Nxg6.} Qd6 {[%emt 0:06:22]} (20... Nf8 $142) 21. g5 {[%emt 0:14:36] Black must now prevent h5.} ({Don't play} 21. Qxb7 $6 Reb8 22. Qa6 Qb4 $11) 21... hxg5 $2 {[%emt 0:00:27] Loses the game.} (21... h5 $16) 22. hxg5 $18 {[%emt 0:00:14][%cal Oh1h7] Threatening mate with Rxh7!} Be6 {[%emt 0:02:00]} 23. Qc2 {[%emt 0:07:34]} Bf5 {[%emt 0:00:36]} 24. Ka1 {[%emt 0:00:11]} ({Not} 24. Qb3 Qe7 $16) 24... Qe7 $2 {[%emt 0:21:58] [#]} (24... Rad8 25. f3 (25. Qb3 Qe7 $14) 25... exf3) 25. f3 $1 {[%emt 0:00:53]} Kg7 {[%emt 0:00:10] [#]} 26. Rxh7+ $1 {[%emt 0:00:50][%mdl 512]} Kxh7 {[%emt 0:00:20]} (26... Kf8 27. Qh2) 27. Qh2+ {[%emt 0:00:02] Weighted Error Value: White=0.08 (flawless) /Black=0.66} 1-0